bitfinex-derivatives/quotes_ETHF0:USTF0_20250709
["timestamp","ask_amount","ask_price","bid_price","bid_amount"]
[1752073542814,0.75329,2654.7,2654.6,0.75331]
[1752073543014,27.7043,2655.0,2654.5,3.96113]
[1752073543015,27.6993,2655.0,2654.5,3.96113]
[1752073543310,0.75324,2654.9,2654.7,0.75328]
[1752073543915,0.6383,2655.0,2654.7,0.75328]
[1752073544219,0.75328,2654.8,2654.6,2.92979]
[1752073544416,0.75328,2654.7,2654.6,2.1765]
[1752073544616,0.75331,2654.6,2654.5,3.2078]
[1752073545116,1.39161,2654.6,2654.5,3.29926201]
[1752073545619,1.39161,2654.6,2654.5,0.09146201]
[1752073546116,2.32281,2654.6,2654.5,0.09146201]
[1752073546913,0.75342,2654.2,2654.1,3.2078]
[1752073547320,2.32292,2654.2,2654.1,3.2078]
[1752073547518,0.75345,2654.1,2654.0,3.2078]
[1752073547723,1.39175,2654.1,2654.0,3.2078]
[1752073547924,0.75354,2653.8,2653.7,2.3575]
[1752073548119,0.75348,2654.1,2653.7,2.9907]
[1752073548424,0.75348,2654.0,2653.9,3.2078]
[1752073548722,1.39178,2654.0,2653.9,3.2078]
[1752073549123,2.32298,2654.0,2653.9,3.2078]
[1752073549525,1.39178,2654.0,2653.9,3.2078]
[1752073550125,1.39178,2654.0,2653.9,3.29926201]
[1752073550326,1.39178,2654.0,2653.9,4.05277201]
[1752073550622,2.32298,2654.0,2653.9,0.09146201]
[1752073551319,6.78028,2654.0,2653.9,0.09146201]
[1752073551527,0.75357,2653.7,2653.6,3.21345089]
[1752073551820,2.32307,2653.7,2653.6,3.21345089]
[1752073553030,1.88414,2653.4,2653.0,3.2078]
[1752073553221,1.39204,2653.1,2653.0,9.11545]
[1752073553718,0.6383,2653.1,2652.7,0.9392]
[1752073553919,0.75382,2652.9,2652.8,0.75381]
[1752073554117,0.75382,2652.9,2652.8,3.59861]
[1752073554327,5.09209,2653.2,2652.8,3.784]
[1752073554628,0.75379,2652.9,2652.8,3.784]
[1752073554829,0.75379,2652.9,2652.8,3.59862]
[1752073555022,1.39209,2652.9,2652.8,3.59862]
[1752073555229,1.39209,2652.9,2652.8,2.8448]
[1752073555428,1.39209,2652.9,2652.8,3.59862]
[1752073555822,1.39209,2652.9,2652.8,2.8448]
[1752073556223,0.75382,2652.8,2652.7,2.3091]
[1752073556626,1.39212,2652.8,2652.7,2.9423]
[1752073556828,1.39212,2652.8,2652.7,3.69615]
[1752073557128,1.39212,2652.8,2652.7,5.269]
[1752073557325,1.39212,2652.8,2652.7,2.9423]
[1752073557734,0.75396,2652.3,2652.2,3.2078]
[1752073558026,0.75402,2652.1,2652.0,0.9392]
[1752073558225,0.75402,2652.1,2652.0,4.01995]
[1752073558432,0.75402,2652.1,2652.0,4.65315]
[1752073559230,0.75402,2652.1,2652.0,3.8991]
[1752073559427,0.75402,2652.1,2652.0,4.65315]
[1752073559830,0.75402,2652.1,2652.0,1.5724]
[1752073560026,0.75402,2652.1,2652.0,0.79673201]
[1752073560231,0.75422,2651.4,2651.3,4.47993787]
[1752073560427,6.30845,2652.0,2651.6,0.75416]
[1752073560621,0.75416,2651.6,2651.5,3.96197]
[1752073560831,0.75417,2651.6,2651.5,0.75418]
[1752073561029,0.75408,2651.9,2651.8,0.7541]
[1752073561226,0.00565089,2652.3,2651.6,7.59223248]
[1752073561431,0.75401,2652.2,2651.8,0.6332]
[1752073561634,0.75401,2652.2,2652.0,0.75404]
[1752073561635,40.8,2652.1,2652.0,0.75404]
[1752073561928,0.75405,2652.0,2651.9,2.2877]
[1752073562135,0.75405,2652.0,2651.8,1.38729]
[1752073562136,0.75408,2651.9,2651.8,0.6332]
[1752073562429,1.39232,2652.1,2652.0,0.09146201]
[1752073563022,2.32352,2652.1,2652.0,0.09146201]
[1752073563827,1.5695,2652.1,2652.0,0.84551201]
[1752073564028,41.55401,2652.2,2652.1,0.75402]
[1752073564231,0.75402,2652.1,2652.0,1.47870201]
[1752073564633,41.4383,2652.2,2652.1,0.75402]
[1752073564827,0.00565089,2652.3,2652.2,0.75399]
[1752073565028,0.00565089,2652.3,2652.2,6.28149]
[1752073565228,0.9312,2652.4,2652.3,0.75396]
[1752073565427,0.9312,2652.4,2652.3,3.09356]
[1752073566727,0.9312,2652.4,2652.3,8.09356]
[1752073566926,3.96159,2653.0,2652.3,8.09356]
[1752073566927,3.2078,2653.0,2652.9,0.75379]
[1752073567533,0.75369,2653.3,2653.2,0.75368]
[1752073567731,1.39199,2653.3,2653.2,0.75368]
[1752073568129,1.39199,2653.3,2653.2,0.75371]
[1752073569229,1.5695,2653.3,2653.0,2.3092]
[1752073569429,0.75379,2652.9,2652.8,2.1782]
[1752073569629,0.75379,2652.9,2652.8,2.8114]
[1752073569827,0.75379,2652.9,2652.8,3.56522]
[1752073570237,0.75379,2652.9,2652.8,3.65668201]
[1752073570428,0.75379,2652.9,2652.8,2.90286201]
[1752073571039,4.06512248,2652.9,2652.8,0.09146201]
[1752073571732,0.75393,2652.4,2652.3,2.1285]
[1752073571940,0.75393,2652.4,2652.3,2.769]
[1752073572136,0.75393,2652.4,2652.3,3.52296]
[1752073572529,0.75393,2652.4,2652.3,5.1031]
[1752073572731,0.75396,2652.3,2652.2,3.2078]
[1752073573132,0.75405,2652.0,2651.9,0.00565089]
[1752073573635,43.16765,2652.0,2651.9,0.00565089]
[1752073574942,43.16765,2652.0,2651.9,0.0971129]
[1752073577034,1.88477,2652.5,2651.9,5.7376129]
[1752073577238,0.75404,2652.1,2652.0,2.1414]
[1752073577543,0.75405,2652.0,2651.9,0.7376129]
[1752073577739,1.88529,2651.8,2651.4,6.16591]
[1752073577940,0.75419,2651.5,2651.4,3.2078]
[1752073578840,0.75419,2651.5,2651.4,3.96202]
[1752073579138,0.75419,2651.5,2651.4,3.2078]
[1752073579344,0.75419,2651.5,2651.4,3.8483]
[1752073579546,0.75419,2651.5,2651.4,4.60252]
[1752073580140,0.75419,2651.5,2651.4,3.8483]
[1752073580748,0.75433,2651.1,2651.0,3.2078]
[1752073580942,0.75433,2651.1,2651.0,3.8483]
[1752073581344,0.75433,2651.1,2651.0,4.60262]
[1752073581545,0.75433,2651.1,2651.0,3.8483]
[1752073582047,0.75433,2651.1,2651.0,3.29926201]
[1752073582248,2.36793,2651.1,2651.0,3.29926201]
[1752073582849,2.36793,2651.1,2651.0,0.09146201]
[1752073583548,0.75447,2650.5,2650.4,3.96229]
[1752073583751,0.75447,2650.5,2650.4,3.8483]
[1752073583940,0.75453,2650.3,2650.2,2.2548]
[1752073584143,0.75453,2650.3,2650.2,3.64986]
[1752073584344,0.75445,2650.6,2650.5,0.75445]
[1752073584947,0.75445,2650.6,2650.5,3.04265]
[1752073586357,1.39915,2650.6,2650.5,3.04265]
[1752073586659,0.75445,2650.6,2650.5,3.13411201]
[1752073586858,1.39915,2650.6,2650.5,0.09146201]
[1752073587060,3.53415,2650.6,2650.5,0.09146201]
[1752073587859,4.50305,2650.6,2650.5,0.09146201]
[1752073588258,54.9319,2650.6,2650.5,1.48643201]
[1752073588959,54.9319,2650.6,2650.5,3.71743201]
[1752073589349,53.963,2650.6,2650.5,3.71743201]
[1752073589657,54.71745,2650.6,2650.5,3.71743201]
[1752073589856,54.71745,2650.6,2650.5,0.09146201]
[1752073590256,55.68635,2650.6,2650.5,0.09146201]
[1752073590451,0.75453,2650.3,2650.2,2.2548]
[1752073590651,0.75453,2650.3,2649.8,3.2078]
[1752073590652,0.6447,2650.3,2650.0,0.7546]
[1752073590860,0.75462,2650.0,2649.9,2.287]
[1752073591059,0.75462,2650.0,2649.8,3.2078]
[1752073591060,0.75464,2649.9,2649.8,3.2078]
[1752073591460,0.75464,2649.9,2649.8,4.91847]
[1752073592055,0.75464,2650.0,2649.9,0.75462]
[1752073592254,0.75464,2649.9,2649.8,3.2078]
[1752073592550,0.75464,2649.9,2649.8,3.96247]
[1752073592757,1.88661,2650.0,2649.5,4.4708]
[1752073592953,0.75473,2649.7,2649.6,0.75472]
[1752073593159,0.75473,2649.6,2649.5,4.4708]
[1752073593458,0.75473,2649.6,2649.5,2.287]
[1752073594358,0.75473,2649.6,2649.5,4.4708]
[1752073594661,0.75473,2649.6,2649.5,5.31700201]
[1752073594861,0.75473,2649.6,2649.5,2.37846201]
[1752073595060,1.39943,2649.6,2649.5,0.73196201]
[1752073595956,2.36833,2649.6,2649.5,0.09146201]
[1752073596158,0.75484,2649.2,2649.1,4.569]
[1752073596357,0.75484,2649.2,2649.1,5.2095]
[1752073596755,53.944,2649.4,2649.1,5.2095]
[1752073596957,0.75484,2649.2,2649.1,5.20796195]
[1752073597463,0.75487,2649.1,2649.0,3.9627]
[1752073597656,56.31347,2649.1,2649.0,3.2078]
[1752073597863,0.75496,2648.8,2648.7,3.2078]
[1752073598161,0.75496,2648.8,2648.7,3.8483]
[1752073598358,0.75496,2648.8,2648.7,8.8483]
[1752073598564,0.75496,2648.8,2648.7,9.60329]
[1752073598762,0.75493,2648.9,2648.8,0.75496]
[1752073598966,0.75493,2648.9,2648.8,1.39546]
[1752073599261,0.75493,2648.9,2648.8,0.6405]
[1752073599659,0.75493,2649.0,2648.8,1.5965]
[1752073599854,0.75493,2649.0,2648.9,0.75491]
[1752073600058,54.69989,2649.1,2649.0,0.7549]
[1752073600257,54.69987,2649.1,2649.0,1.3954]
[1752073600461,54.69987,2649.1,2649.0,3.5296]
[1752073600661,53.945,2649.1,2649.0,3.5296]
[1752073602269,0.75484,2649.2,2649.1,0.75487]
[1752073602469,27.72184,2649.2,2649.1,1.37777]
[1752073602766,28.37084,2649.2,2649.1,1.37777]
[1752073602955,0.75487,2649.1,2649.0,2.88907]
[1752073603559,0.00566177,2649.3,2649.2,0.75484]
[1752073603765,0.65466177,2649.3,2649.2,1.37774]
[1752073603966,26.97266177,2649.3,2649.2,1.37774]
[1752073604166,1.40947177,2649.3,2649.2,1.37774]
[1752073604366,28.37547177,2649.3,2649.2,0.6229]
[1752073604568,1.40947177,2649.3,2649.2,0.6229]
[1752073604769,28.37547177,2649.3,2649.2,0.6229]
[1752073604959,29.50771177,2649.3,2648.9,2.33216201]
[1752073605159,3.9627,2649.0,2648.9,0.09146201]
[1752073605372,1.4039,2649.0,2648.9,0.09146201]
[1752073605669,0.7549,2649.0,2648.9,0.71436201]
[1752073605864,0.7549,2649.0,2648.9,1.46929201]
[1752073606262,0.7549,2649.0,2648.9,3.78009201]
[1752073607268,0.7549,2649.1,2649.0,0.75488]
[1752073607575,0.00566177,2649.3,2649.2,0.75484]
[1752073607867,0.75467,2649.9,2649.8,0.75465]
[1752073608072,0.9356,2650.3,2649.8,3.31133248]
[1752073608272,3.96238,2650.2,2650.1,0.75459]
[1752073608469,3.9623,2650.5,2650.1,3.31133248]
[1752073608767,0.75446,2650.6,2650.5,0.75446]
[1752073608964,1.49526411,2650.7,2650.4,3.2078]
[1752073609165,1.49526411,2650.6,2650.5,3.03474]
[1752073609374,1.49556792,2650.6,2650.5,3.03477]
[1752073609571,2.2506952,2650.7,2650.6,0.75444]
[1752073609869,3.9622,2650.8,2650.7,0.75442]
[1752073610075,0.75443,2650.7,2650.6,0.75442]
[1752073610477,0.75444,2650.6,2650.5,5.39305]
[1752073611275,0.75443,2650.7,2650.6,0.75444]
[1752073611473,0.75443,2650.7,2650.6,0.09146201]
[1752073611876,0.75443,2650.7,2650.6,0.84590201]
[1752073612674,0.75443,2650.7,2650.6,1.46880201]
[1752073613172,0.7544,2650.8,2650.7,0.75442]
[1752073613373,0.7544,2650.8,2650.7,1.37732]
[1752073613374,0.649,2650.8,2650.7,1.37732]
[1752073613571,0.649,2650.8,2650.7,3.64242]
[1752073613572,1.40339,2650.8,2650.7,3.64242]
[1752073614378,0.75439,2650.8,2650.7,3.64242]
[1752073614570,0.75437,2650.9,2650.8,0.75436]
[1752073614770,0.75431,2651.1,2651.0,0.75431]
[1752073615171,3.96209,2651.2,2651.1,0.7543]
[1752073615372,1.40329,2651.2,2651.1,1.3772]
[1752073615571,3.2078,2651.8,2651.3,0.75424]
[1752073615876,1.40324,2651.4,2651.3,0.6229]
[1752073616173,0.75421,2651.5,2651.4,0.75419]
[1752073616372,3.2078,2651.8,2651.4,2.7633]
[1752073616677,0.75417,2651.6,2651.5,0.75416]
[1752073616876,0.75414,2651.7,2651.6,0.75414]
[1752073617078,1.40314,2651.7,2651.6,1.37704]
[1752073617279,0.649,2651.7,2651.6,1.37704]
[1752073617667,0.75412,2651.8,2651.6,1.37704]
[1752073617668,2.2105,2652.1,2651.9,0.75407]
[1752073617868,2.2105,2652.1,2652.0,0.75405]
[1752073618076,0.649,2652.1,2652.0,1.37695]
[1752073618268,3.96179,2652.2,2652.1,0.75402]
[1752073618475,1.40301,2652.2,2652.0,1.37693]
[1752073618678,0.75402,2652.1,2652.0,1.37693]
[1752073619075,0.75402,2652.1,2652.0,0.6229]
[1752073619475,0.649,2652.2,2652.0,0.6229]
[1752073619476,1.40301,2652.2,2652.0,0.6229]
[1752073619676,0.75402,2652.1,2652.0,0.6229]
[1752073620380,0.75402,2652.1,2652.0,0.71436201]
[1752073620679,3.03702,2652.1,2652.0,0.71436201]
[1752073621178,29.95802,2652.1,2652.0,0.71436201]
[1752073621473,29.95802,2652.1,2652.0,0.09146201]
[1752073621681,31.54262,2652.1,2652.0,0.09146201]
[1752073621984,0.75427,2651.2,2651.1,3.2078]
[1752073623776,0.75436,2650.9,2650.8,3.2078]
[1752073624086,1.68996,2650.9,2650.8,3.2078]
[1752073624375,0.9356,2650.9,2650.4,3.2078]
[1752073624579,0.75447,2650.5,2650.4,3.2078]
[1752073624785,0.75447,2650.5,2650.4,3.96229]
[1752073625082,0.75446,2650.6,2650.5,0.75446]
[1752073625283,0.75447,2650.5,2650.4,6.16129]
[1752073625479,0.75447,2650.5,2650.4,5.4068]
[1752073625682,0.75447,2650.5,2650.4,3.2078]
[1752073626474,0.75447,2650.5,2650.4,3.9623]
[1752073626679,0.75439,2650.8,2650.4,12.47443248]
[1752073626883,0.75439,2650.8,2650.7,3.2078]
[1752073627180,0.75444,2650.6,2650.5,3.08726]
[1752073627580,0.75443,2650.7,2650.6,0.75441]
[1752073628083,8.33833,2651.2,2650.7,0.75439]
[1752073628285,8.33833,2651.2,2651.0,0.7543]
[1752073628286,0.75432,2651.1,2651.0,0.7543]
[1752073628682,0.75435,2651.0,2650.9,0.75434]
[1752073629078,0.75435,2651.0,2650.8,2.243]
[1752073629079,4.1434,2651.2,2650.8,2.243]
[1752073629283,1.68988,2651.2,2651.1,0.7543]
[1752073630281,0.7543,2651.1,2651.0,3.96212]
[1752073630588,0.75436,2651.0,2650.9,0.75434]
[1752073631081,6.40096,2651.4,2650.8,2.243]
[1752073631282,0.75429,2651.2,2651.1,0.75427]
[1752073631478,2.2038,2651.4,2651.0,3.2078]
[1752073631681,0.7543,2651.2,2651.1,3.03588]
[1752073632078,0.75422,2651.5,2651.4,0.7542]
[1752073632484,0.75422,2651.4,2651.3,0.75423]
[1752073632786,0.75424,2651.3,2651.2,3.03585]
[1752073632987,0.75424,2651.4,2651.3,0.75423]
[1752073633188,1.39724,2651.4,2651.3,0.75423]
[1752073633487,1.39724,2651.4,2651.3,1.42993]
[1752073634085,2.2996,2651.7,2651.5,0.75417]
[1752073634388,0.75422,2651.5,2651.4,0.7542]
[1752073634592,1.39722,2651.5,2651.4,0.7542]
[1752073634788,1.39722,2651.5,2651.4,1.4299]
[1752073636393,1.39722,2651.5,2651.4,0.6757]
[1752073636688,1.39722,2651.5,2651.0,9.35924248]
[1752073636689,0.7543,2651.1,2651.0,3.9621]
[1752073636890,1.3973,2651.1,2651.0,3.2078]
[1752073637086,1.3973,2651.1,2651.0,3.8835]
[1752073637285,1.3973,2651.1,2651.0,3.2078]
[1752073637491,1.3973,2651.1,2651.0,3.8835]
[1752073638190,2.3583,2651.1,2651.0,3.2078]
[1752073638389,0.75439,2650.8,2650.7,0.00566177]
[1752073638579,1.39739,2650.8,2650.7,0.00566177]
[1752073638782,2.35839,2650.8,2650.7,0.00566177]
[1752073639188,4.63889,2650.8,2650.7,0.00566177]
[1752073639698,4.63889,2650.8,2650.7,1.43578177]
[1752073639699,0.75439,2650.8,2650.7,1.43578177]
[1752073639991,3.1976,2651.1,2650.8,0.75436]
[1752073640186,3.1976,2651.1,2650.8,3.8835]
[1752073640187,1.39738,2650.9,2650.8,3.8835]
[1752073641487,1.39738,2650.9,2650.8,4.63789]
[1752073641787,1.39738,2650.9,2650.8,3.2078]
[1752073641995,1.39738,2650.9,2650.8,4.63789]
[1752073642394,1.39738,2650.9,2650.8,3.8835]
[1752073643296,1.39738,2650.9,2650.8,4.63789]
[1752073643497,1.39738,2650.9,2650.8,3.8835]
[1752073643999,0.75439,2650.8,2650.7,0.00566177]
[1752073644295,2.35839,2650.8,2650.7,0.00566177]
[1752073648805,2.35839,2650.8,2650.7,0.68136177]
[1752073650206,2.35839,2650.8,2650.7,0.00566177]
[1752073652306,5.66972248,2650.8,2650.7,0.00566177]
[1752073652512,0.7545,2650.4,2650.3,3.2078]
[1752073652713,1.3975,2650.4,2650.3,3.2078]
[1752073653107,2.3585,2650.4,2650.3,3.2078]
[1752073654507,2.3585,2650.4,2650.0,2.4016]
[1752073654508,0.75461,2650.1,2650.0,0.7546]
[1752073654715,1.39761,2650.1,2650.0,1.4303]
[1752073655014,0.75461,2650.1,2650.0,1.4303]
[1752073655216,1.39761,2650.1,2650.0,3.6519]
[1752073655512,1.39761,2650.1,2650.0,2.8973]
[1752073655813,1.39761,2650.1,2650.0,3.65191]
[1752073656016,0.75461,2650.0,2649.9,2.93684]
[1752073656218,1.39761,2650.0,2649.9,2.8579]
[1752073656412,0.75464,2649.9,2649.8,3.96247]
[1752073656610,1.39764,2649.9,2649.8,3.8835]
[1752073656813,1.39764,2649.9,2649.8,4.63817]
[1752073657010,1.39764,2649.9,2649.8,6.94427]
[1752073657211,1.39764,2649.9,2649.8,6.1896]
[1752073657616,0.75464,2649.9,2649.8,6.94427]
[1752073657917,0.75458,2650.2,2650.1,0.75457]
[1752073658118,0.75458,2650.2,2650.1,4.63807]
[1752073658517,1.39758,2650.2,2650.1,0.6757]
[1752073658715,1.39758,2650.2,2650.1,1.43029]
[1752073659417,0.643,2650.2,2650.1,4.63809]
[1752073659617,1.39756,2650.2,2650.1,4.63809]
[1752073660219,1.39756,2650.2,2650.1,3.8835]
[1752073660720,0.643,2650.2,2650.1,4.63809]
[1752073662116,0.75446,2650.6,2650.2,0.75456]
[1752073662323,0.75446,2650.6,2650.5,1.38297]
[1752073662620,1.39226,2650.6,2650.5,0.6285]
[1752073662820,1.39226,2650.6,2650.5,1.38297]
[1752073663615,1.39226,2650.6,2650.5,0.6285]
[1752073663812,0.7545,2650.4,2650.3,2.1856]
[1752073664119,0.7545,2650.4,2650.3,2.8141]
[1752073664319,1.3923,2650.4,2650.3,2.8141]
[1752073664515,3.2078,2650.8,2650.3,2.8141]
[1752073664720,0.75445,2650.6,2650.5,0.75444]
[1752073664918,0.75443,2650.7,2650.6,0.75444]
[1752073665114,1.39223,2650.7,2650.6,1.38294]
[1752073665518,0.75444,2650.6,2650.5,0.75445]
[1752073665819,0.75445,2650.7,2650.6,0.75442]
[1752073666021,1.39225,2650.7,2650.6,1.38292]
[1752073666620,1.39225,2650.7,2650.6,0.75442]
[1752073667122,1.39225,2650.7,2650.6,1.38292]
[1752073668011,2.34655,2650.7,2650.6,0.6285]
[1752073668217,2.34655,2650.7,2650.6,1.38294]
[1752073668416,2.34655,2650.7,2650.6,0.6285]
[1752073669118,2.34655,2650.7,2650.6,1.38294]
[1752073669523,2.34655,2650.7,2650.6,0.6285]
[1752073669724,2.34655,2650.7,2650.6,1.38294]
[1752073670022,2.34655,2650.7,2650.6,0.6285]
[1752073670321,4.90343248,2650.7,2650.4,0.75448]
[1752073670522,0.7545,2650.5,2650.4,0.75448]
[1752073670720,1.3923,2650.5,2650.4,1.38298]
[1752073670922,1.5921,2650.5,2650.0,2.1687]
[1752073671120,0.75456,2650.3,2650.2,0.75454]
[1752073671423,0.75456,2650.3,2650.2,1.38304]
[1752073671821,0.75453,2650.4,2650.3,0.7545]
[1752073672222,0.75453,2650.3,2650.2,1.38304]
[1752073672521,0.75453,2650.3,2650.2,3.56254]
[1752073674817,1.39233,2650.3,2650.2,3.56254]
[1752073676322,4.7999,2650.3,2650.0,2.1687]
[1752073676524,0.75464,2649.9,2649.8,3.96246]
[1752073676825,0.75464,2649.9,2649.8,3.8363]
[1752073677124,0.75464,2649.9,2649.8,4.59097]
[1752073677522,0.75464,2649.9,2649.8,3.8363]
[1752073678123,0.75464,2649.9,2649.8,4.59097]
[1752073678515,0.75464,2649.9,2649.8,0.6285]
[1752073679113,41.55464,2649.9,2649.8,1.38317]
[1752073679315,41.55464,2649.9,2649.8,0.6285]
[1752073679516,43.91644,2649.9,2649.8,0.6285]
[1752073679922,0.7547,2649.7,2649.6,0.75472]
[1752073680225,0.7547,2649.7,2649.4,9.92467198]
[1752073680226,0.75476,2649.5,2649.4,9.92467198]
[1752073680425,0.75476,2649.5,2649.4,8.31657198]
[1752073680622,0.75476,2649.5,2649.4,4.59109]
[1752073681325,0.75476,2649.5,2649.4,3.8363]
[1752073681523,1.39256,2649.5,2649.4,3.8363]
[1752073681827,0.75481,2649.3,2649.2,0.75483]
[1752073682027,1.39261,2649.3,2649.2,1.38333]
[1752073682227,1.39261,2649.3,2649.2,0.75483]
[1752073682426,0.6378,2649.3,2649.2,1.38333]
[1752073682728,0.00566177,2649.5,2649.4,0.75479]
[1752073682928,0.00566177,2649.5,2649.4,1.38329]
[1752073683431,0.00566177,2649.5,2649.4,3.59509]
[1752073683728,0.76042177,2649.5,2649.4,3.59509]
[1752073684624,0.00566177,2649.5,2649.4,3.59509]
[1752073685020,1.39822177,2649.5,2649.4,3.59509]
[1752073685425,0.75479,2649.4,2649.3,3.2078]
[1752073685730,2.34689,2649.4,2649.3,3.8363]
[1752073686232,1.39259,2649.4,2649.3,4.59111]
[1752073686530,2.34689,2649.4,2649.3,3.2078]
[1752073686726,0.75484,2649.2,2649.1,0.75487]
[1752073686929,0.75484,2649.2,2649.1,1.38337]
[1752073686930,0.6378,2649.2,2649.1,1.38337]
[1752073687123,3.05439,2649.4,2649.3,0.75481]
[1752073687327,3.69219,2649.4,2649.3,1.38331]
[1752073687525,3.69219,2649.4,2649.2,0.75483]
[1752073687733,0.75484,2649.2,2649.1,3.11185]
[1752073687931,1.39264,2649.2,2649.1,3.74035]
[1752073688832,0.6378,2649.2,2649.1,6.94815]
[1752073689034,1.39264,2649.2,2649.1,3.96265]
[1752073689331,1.39264,2649.2,2649.1,4.59115]
[1752073689723,0.6378,2649.2,2649.1,4.59115]
[1752073689922,1.39264,2649.2,2649.1,4.59115]
[1752073691233,1.39264,2649.2,2649.1,3.8731]
[1752073691431,1.39264,2649.2,2649.1,0.6653]
[1752073691830,1.6009,2649.2,2648.9,3.96271]
[1752073692040,0.75493,2648.9,2648.8,4.48027198]
[1752073692337,0.75496,2648.8,2648.7,4.48027198]
[1752073692532,3.2078,2649.3,2648.7,8.29877198]
[1752073692729,0.75492,2649.0,2648.9,0.7549]
[1752073692930,0.75492,2649.0,2648.9,1.4202]
[1752073693130,1.40402,2649.0,2648.9,0.6653]
[1752073693331,1.40402,2649.0,2648.9,1.42023]
[1752073694033,0.75492,2649.0,2648.9,1.42023]
[1752073694428,1.40402,2649.0,2648.9,0.75493]
[1752073694833,1.40402,2649.0,2648.9,1.42023]
[1752073695334,0.6491,2649.0,2648.9,1.42023]
[1752073696540,1.404,2649.0,2648.9,1.42023]
[1752073696733,0.6491,2649.0,2648.9,4.62803]
[1752073696934,1.404,2649.0,2648.9,4.62803]
[1752073698544,0.6491,2649.0,2648.9,4.62803]
[1752073698840,2.2996,2649.4,2649.1,1.88717]
[1752073699032,0.00566177,2649.5,2649.4,0.75479]
[1752073699232,0.65476177,2649.5,2649.4,1.42009]
[1752073699434,0.00566177,2649.5,2649.4,1.42009]
[1752073699637,0.65476177,2649.5,2649.4,3.73169]
[1752073699843,1.40952177,2649.5,2649.4,3.73169]
[1752073700136,4.92919425,2649.5,2649.2,3.2078]
[1752073700342,0.75481,2649.3,2649.2,3.96264]
[1752073700538,1.40391,2649.3,2649.2,4.62794]
[1752073700942,1.40391,2649.3,2649.2,3.2078]
[1752073701142,1.40391,2649.3,2649.2,3.96264]
[1752073701337,1.40391,2649.3,2649.2,4.62794]
[1752073701538,1.40391,2649.3,2649.2,3.96264]
[1752073701843,0.00566177,2649.5,2649.2,3.8731]
[1752073702036,0.76046177,2649.5,2649.4,0.75479]
[1752073702236,40.80566177,2649.5,2649.4,0.6653]
[1752073702441,41.45476177,2649.5,2649.4,0.6653]
[1752073702848,42.20952177,2649.5,2649.4,0.6653]
[1752073703143,1.40952177,2649.5,2649.4,1.42009]
[1752073703843,0.76042177,2649.5,2649.4,1.42009]
[1752073704147,1.40952177,2649.5,2649.4,1.42009]
[1752073704641,1.40952177,2649.5,2649.2,3.2078]
[1752073704642,0.75481,2649.3,2649.2,3.2078]
[1752073704842,0.75481,2649.3,2649.2,3.8731]
[1752073704843,1.40391,2649.3,2649.2,3.8731]
[1752073705044,1.40391,2649.3,2649.2,3.2078]
[1752073705639,2.36701,2649.3,2649.2,3.2078]
[1752073705839,1.40391,2649.3,2649.2,3.96264]
[1752073706040,1.40391,2649.3,2649.2,4.62794]
[1752073706746,0.75479,2649.4,2649.3,0.75481]
[1752073706948,1.40953177,2649.5,2649.4,1.42009]
[1752073707246,0.76043177,2649.5,2649.4,1.42009]
[1752073707443,0.00566177,2649.5,2649.4,1.42009]
[1752073707643,0.75469,2649.8,2649.7,0.75468]
[1752073707844,1.40379,2649.8,2649.7,1.41998]
[1752073708644,3.96244,2650.0,2649.9,0.75464]
[1752073708845,4.61154,2650.0,2649.9,1.41994]
[1752073709139,1.88605,2650.7,2649.9,3.8731]
[1752073709449,0.75464,2649.9,2649.8,2.4292]
[1752073709745,1.40374,2649.9,2649.8,1.41997]
[1752073710044,0.75461,2650.1,2650.0,0.7546]
[1752073710246,1.40371,2650.1,2650.0,1.4199]
[1752073710645,0.75462,2650.0,2649.9,2.4292]
[1752073710845,1.40372,2650.0,2649.9,3.0945]
[1752073711043,0.75466,2649.9,2649.8,0.75465]
[1752073711241,1.40376,2649.9,2649.8,0.75465]
[1752073711439,1.40376,2649.9,2649.8,1.41995]
[1752073712349,0.75463,2650.0,2649.9,0.75461]
[1752073712549,0.75466,2649.9,2649.8,0.75465]
[1752073712750,4.92353248,2649.9,2649.6,3.2078]
[1752073712944,0.7547,2649.7,2649.6,3.2078]
[1752073713146,2.3669,2649.7,2649.6,3.2078]
[1752073713448,1.8869,2649.5,2649.2,4.48593375]
[1752073713748,1.40391,2649.3,2649.2,0.67096177]
[1752073713951,0.6491,2649.3,2649.2,1.42580177]
[1752073714745,5.4632,2649.8,2649.2,1.62446177]
[1752073714949,0.75474,2649.6,2649.5,0.75473]
[1752073715149,0.75471,2649.7,2649.6,0.75473]
[1752073715348,0.75471,2649.7,2649.6,1.42003]
[1752073715544,3.01007,2649.8,2649.7,0.7547]
[1752073715743,1.40377,2649.8,2649.7,0.6653]
[1752073715943,1.40377,2649.8,2649.7,1.42]
[1752073716351,0.75467,2649.9,2649.8,0.75465]
[1752073716544,1.40377,2649.9,2649.8,1.41995]
[1752073717548,0.75464,2650.0,2649.9,0.75461]
[1752073717747,0.6491,2650.1,2650.0,1.41991]
[1752073717949,0.75457,2650.2,2650.1,0.75456]
[1752073718149,4.61145,2650.3,2650.2,0.75456]
[1752073718345,3.96235,2650.3,2650.2,1.41986]
[1752073718549,4.61145,2650.3,2650.2,0.6653]
[1752073719046,5.4782,2650.6,2650.5,0.75447]
[1752073719246,41.7631,2651.2,2650.5,4.8266]
[1752073719549,41.7631,2651.2,2650.8,3.2078]
[1752073719550,0.75436,2650.9,2650.8,3.2078]
[1752073719849,1.40346,2650.9,2650.8,3.8731]
[1752073720055,0.75432,2651.1,2650.8,4.8266]